fUST/lending_fUST_20251006
["ID","MTS","AMOUNT","RATE_DAILY","PERIOD"]
[389497482,1759683060364,-486.08967354,0.00017534,2]
[389497483,1759683060373,-2501.47,0.00017534,2]
[389497484,1759683060383,-500.0,0.00017534,2]
[389497485,1759683060393,-500.0,0.00017534,2]
[389497486,1759683060402,-605.92,0.00017534,2]
[389497487,1759683060412,-2829.49,0.00017534,2]
[389497488,1759683060421,-500.0,0.00017534,2]
[389497489,1759683060431,-500.0,0.00017534,2]
[389497490,1759683060440,-7633.12,0.00017534,2]
[389497491,1759683060454,-500.0,0.00017534,2]
[389497492,1759683060463,-1955.89,0.00017534,2]
[389497493,1759683060472,-500.0,0.00017534,2]
[389497494,1759683060482,-500.0,0.00017534,2]
[389497495,1759683060491,-500.0,0.00017534,2]
[389497496,1759683060501,-1524.42,0.00017534,2]
[389497497,1759683060510,-1078.1,0.00017534,2]
[389497498,1759683060519,-500.0,0.00017534,2]
[389497499,1759683060529,-2430.6,0.00017534,2]
[389497500,1759683060538,-1566.87,0.00017534,2]
[389497501,1759683060547,-500.0,0.00017534,2]
[389497502,1759683060557,-3661.35,0.00017534,2]
[389497503,1759683060567,-5648.74,0.00017534,2]
[389497504,1759683060576,-500.0,0.00017534,2]
[389497505,1759683060585,-941.56,0.00017534,2]
[389497506,1759683060594,-500.0,0.00017534,2]
[389497507,1759683060603,-2793.01,0.00017534,2]
[389497508,1759683060612,-500.0,0.00017534,2]
[389497509,1759683060622,-500.0,0.00017534,2]
[389497510,1759683060631,-500.0,0.00017534,2]
[389497511,1759683060641,-4190.87,0.00017534,2]
[389497512,1759683060650,-500.0,0.00017534,2]
[389497513,1759683060659,-712.14,0.00017534,2]
[389497514,1759683060668,-500.0,0.00017534,2]
[389497515,1759683060678,-1244.49,0.00017534,2]
[389497516,1759683060687,-7876.79,0.00017534,2]
[389497517,1759683060699,-500.0,0.00017534,2]
[389497518,1759683060709,-1636.71,0.00017534,2]
[389497519,1759683060719,-500.0,0.00017534,2]
[389497520,1759683060729,-500.0,0.00017534,2]
[389497521,1759683060738,-500.0,0.00017534,2]
[389497522,1759683060747,-500.0,0.00017534,2]
[389497523,1759683060757,-1542.81,0.00017534,2]
[389497524,1759683060766,-691.74,0.00017534,2]
[389497525,1759683060776,-746.45,0.00017534,2]
[389497526,1759683060786,-745.75,0.00017534,2]
[389497527,1759683060796,-864.59,0.00017534,2]
[389497528,1759683060805,-500.0,0.00017534,2]
[389497529,1759683060815,-1625.81,0.00017534,2]
[389497530,1759683060824,-1276.87,0.00017534,2]
[389497531,1759683060834,-914.33,0.00017534,2]
[389497532,1759683060843,-500.0,0.00017534,2]
[389497533,1759683060853,-1151.73,0.00017534,2]
[389497534,1759683060862,-1768.9,0.00017534,2]
[389497535,1759683060872,-4128.88,0.00017534,2]
[389497536,1759683060882,-321.9546863,0.00017534,2]
[389497537,1759683060892,-500.0,0.00017534,2]
[389497538,1759683060902,-601.81,0.00017534,2]
[389497539,1759683060913,-500.0,0.00017534,2]
[389497540,1759683060922,-1631.89,0.00017534,2]
[389497541,1759683060932,-2717.3,0.00017534,2]
[389497542,1759683060942,-853.97,0.00017534,2]
[389497543,1759683060957,-500.0,0.00017534,2]
[389497544,1759683060967,-500.0,0.00017534,2]
[389497545,1759683060976,-5655.4,0.00017534,2]
[389497546,1759683060986,-644.18,0.00017534,2]
[389497547,1759683060996,-851.61,0.00017534,2]
[389497548,1759683061007,-5499.36,0.00017534,2]
[389497549,1759683061017,-4498.11,0.00017534,2]
[389497550,1759683061027,-4396.27,0.00017534,2]
[389497551,1759683061037,-601.93,0.00017534,2]
[389497552,1759683061048,-500.0,0.00017534,2]
[389497553,1759683061057,-500.0,0.00017534,2]
[389497554,1759683061067,-830.43,0.00017534,2]
[389497555,1759683061076,-500.0,0.00017534,2]
[389497556,1759683061085,-500.0,0.00017534,2]
[389497557,1759683061095,-500.0,0.00017534,2]
[389497558,1759683061104,-921.77,0.00017534,2]
[389497559,1759683061113,-1181.0,0.00017534,2]
[389497560,1759683061123,-2597.62,0.00017534,2]
[389497561,1759683061132,-1226.01,0.00017534,2]
[389497562,1759683061141,-1056.87,0.00017534,2]
[389497563,1759683061151,-500.0,0.00017534,2]
[389497564,1759683061162,-500.0,0.00017534,2]
[389497565,1759683061171,-1595.17,0.00017534,2]
[389497566,1759683061182,-3567.7,0.00017534,2]
[389497567,1759683061192,-220.0,0.00017534,2]
[389497568,1759683061206,-500.0,0.00017534,2]
[389497569,1759683061220,-4467.37,0.00017534,2]
[389497570,1759683061230,-500.0,0.00017534,2]
[389497571,1759683061240,-500.0,0.00017534,2]
[389497572,1759683061250,-500.0,0.00017534,2]
[389497573,1759683061259,-2425.68,0.00017534,2]
[389497574,1759683061270,-509.51,0.00017534,2]
[389497575,1759683061279,-1398.29,0.00017534,2]
[389497576,1759683061289,-4931.82,0.00017534,2]
[389497577,1759683061299,-500.0,0.00017534,2]
[389497578,1759683061308,-500.0,0.00017534,2]
[389497579,1759683061318,-2146.05,0.00017534,2]
[389497580,1759683061328,-2006.77,0.00017534,2]
[389497581,1759683061338,-500.0,0.00017534,2]
[389497582,1759683061347,-500.0,0.00017534,2]
[389497583,1759683061356,-500.0,0.00017534,2]
[389497584,1759683061365,-1916.69,0.00017534,2]
[389497585,1759683061374,-500.0,0.00017534,2]
[389497586,1759683061384,-9096.5,0.00017534,2]
[389497587,1759683061393,-3164.66,0.00017534,2]
[389497588,1759683061402,-500.0,0.00017534,2]
[389497589,1759683061411,-1132.36,0.00017534,2]
[389497590,1759683061421,-593.97,0.00017534,2]
[389497591,1759683061430,-500.0,0.00017534,2]
[389497592,1759683061439,-500.0,0.00017534,2]
[389497593,1759683061453,-500.0,0.00017534,2]
[389497594,1759683061462,-1024.56,0.00017534,2]
[389497595,1759683061471,-703.22,0.00017534,2]
[389497596,1759683061481,-500.0,0.00017534,2]
[389497597,1759683061491,-500.0,0.00017534,2]
[389497598,1759683061500,-1118.02,0.00017534,2]
[389497599,1759683061510,-500.0,0.00017534,2]
[389497600,1759683061519,-500.0,0.00017534,2]
[389497601,1759683061529,-1995.61,0.00017534,2]
[389497602,1759683061539,-2310.91,0.00017534,2]
[389497603,1759683061548,-500.0,0.00017534,2]
[389497604,1759683061557,-583.51,0.00017534,2]
[389497605,1759683061567,-500.0,0.00017534,2]
[389497606,1759683061576,-741.26,0.00017534,2]
[389497607,1759683061586,-4044.23,0.00017534,2]
[389497608,1759683061595,-289.31838181,0.00017534,2]
[389497609,1759683061604,-500.0,0.00017534,2]
[389497610,1759683061613,-7186.82798834,0.00017549,2]
[389497611,1759683061623,-1072.496459,0.00017549,2]
[389497612,1759683061632,-1072.496459,0.00017549,2]
[389497613,1759683061642,-1072.496459,0.00017549,2]
[389497614,1759683061651,-1072.496459,0.00017549,2]
[389497615,1759683061661,-151.0,0.00017567,2]
[389497616,1759683061670,-500.0,0.00017567,2]
[389497617,1759683061680,-378.41664572,0.00017567,2]
[389497618,1759683061689,-500.0,0.00017567,2]
[389497619,1759683061701,-500.0,0.00017567,2]
[389497620,1759683061710,-500.0,0.00017567,2]
[389497621,1759683061720,-500.0,0.00017567,2]
[389497622,1759683061729,-1752.0,0.00017567,2]
[389497623,1759683061738,-500.0,0.00017567,2]
[389497624,1759683061747,-276.15062357,0.00017567,2]
[389497625,1759683061757,-500.0,0.00017567,2]
[389497626,1759683061768,-500.0,0.00017567,2]
[389497627,1759683061778,-541.18417434,0.00017567,2]
[389497628,1759683061788,-417.50044166,0.00017567,2]
[389497629,1759683061798,-151.0,0.00017567,2]
[389497630,1759683061807,-500.0,0.00017567,2]
[389497631,1759683061817,-151.0,0.00017567,2]
[389497632,1759683061826,-500.0,0.00017567,2]
[389497633,1759683061836,-151.0,0.00017567,2]
[389497634,1759683061846,-247.54371362,0.00017567,2]
[389497635,1759683061856,-500.0,0.00017567,2]
[389497636,1759683061866,-500.0,0.00017567,2]
[389497637,1759683061875,-500.0,0.00017567,2]
[389497638,1759683061886,-201.0,0.00017604,2]
[389497639,1759683061895,-2241.03273719,0.00017628,2]
[389497640,1759683061906,-1680.0,0.00017639,2]
[389497641,1759683061915,-420.0,0.00017639,2]
[389497642,1759683061926,-420.0,0.00017639,2]
[389497643,1759683062144,-500.0,0.00017677,2]
[389497644,1759683062153,-500.0,0.00017677,2]
[389497645,1759683062163,-506.72466247,0.00017677,2]
[389497646,1759683062172,-500.0,0.00017677,2]
[389497647,1759683062182,-500.0,0.00017677,2]
[389497648,1759683062192,-500.0,0.00017677,2]
[389497649,1759683062205,-303.56566882,0.00017679,2]
[389497650,1759683062218,-500.0,0.00017679,2]
[389497651,1759683062229,-500.0,0.00017679,2]
[389497652,1759683062239,-500.0,0.00017679,2]
[389497653,1759683062249,-500.0,0.00017679,2]
[389497654,1759683062260,-500.0,0.00017679,2]
[389497655,1759683062270,-20006.03981059,0.00017698,2]
[389497656,1759683062279,-174.61919141,0.00017698,2]
[389497657,1759683062290,-201.0,0.00017702,2]
[389497658,1759683062300,-293.08643049,0.00017704,2]
[389497659,1759683062309,-1680.0,0.00017727,2]
[389497660,1759683062319,-223.135702,0.00017728,2]
[389497661,1759683062328,-449.2537522,0.00017736,2]
[389497662,1759683062338,-660.0,0.00017736,2]
[389497663,1759683062347,-500.0,0.00017742,2]
[389497664,1759683062356,-500.0,0.00017742,2]
[389497665,1759683062365,-201.0,0.00017793,2]
[389497666,1759683062375,-8040.96,0.00017798,3]
[389497667,1759683062383,-4020.48,0.00017798,3]
[389497668,1759683062392,-2010.24,0.00017798,3]
[389497669,1759683062402,-1005.12,0.00017798,3]
[389497670,1759683062411,-502.56,0.00017798,3]
[389497671,1759683062420,-502.56,0.00017798,3]
[389497672,1759683062429,-293.57808533,0.00017798,3]
[389497673,1759683062438,-533.57524315,0.00017798,3]
[389497674,1759683062447,-500.0,0.00017808,2]
[389497675,1759683062462,-500.0,0.00017808,2]
[389497676,1759683062471,-1462.89,0.00017808,2]
[389497677,1759683062481,-500.0,0.00017808,2]
[389497678,1759683062490,-500.0,0.00017808,2]
[389497679,1759683062499,-500.0,0.00017808,2]
[389497680,1759683062508,-500.0,0.00017808,2]
[389497681,1759683062517,-262.27717494,0.00017808,2]
[389497682,1759683062526,-607.69,0.00017808,2]
[389497683,1759683062536,-855.9,0.00017808,2]
[389497684,1759683062545,-500.0,0.00017808,2]
[389497685,1759683062554,-769.36,0.00017808,2]
[389497686,1759683062563,-500.0,0.00017808,2]
[389497687,1759683062573,-500.0,0.00017808,2]
[389497688,1759683062583,-500.0,0.00017808,2]
[389497689,1759683062592,-994.94,0.00017808,2]
[389497690,1759683062601,-500.0,0.00017808,2]
[389497691,1759683062612,-500.0,0.00017808,2]
[389497692,1759683062621,-500.0,0.00017808,2]
[389497693,1759683062630,-1206.92,0.00017808,2]
[389497694,1759683062639,-500.0,0.00017808,2]
[389497695,1759683062649,-500.0,0.00017808,2]
[389497696,1759683062658,-500.0,0.00017808,2]
[389497697,1759683062667,-500.0,0.00017808,2]
[389497698,1759683062678,-762.91,0.00017808,2]
[389497699,1759683062687,-992.97,0.00017808,2]
[389497700,1759683062698,-842.2,0.00017808,2]
[389497701,1759683062711,-500.0,0.00017808,2]
[389497702,1759683062721,-621.18167585,0.00017808,2]
[389497703,1759683062730,-912.33,0.00017808,2]
[389497704,1759683062739,-500.0,0.00017808,2]
[389497705,1759683062749,-500.0,0.00017808,2]
[389497706,1759683062758,-500.0,0.00017808,2]
[389497707,1759683062767,-500.0,0.00017808,2]
[389497708,1759683062777,-500.0,0.00017808,2]
[389497709,1759683062787,-500.0,0.00017808,2]
[389497710,1759683062796,-500.0,0.00017808,2]
[389497711,1759683062806,-500.0,0.00017808,2]
[389497712,1759683062816,-500.0,0.00017808,2]
[389497713,1759683062825,-500.0,0.00017808,2]
[389497714,1759683062834,-500.0,0.00017808,2]
[389497715,1759683062844,-640.99,0.00017808,2]
[389497716,1759683062853,-500.0,0.00017808,2]
[389497717,1759683062862,-751.03,0.00017808,2]
[389497718,1759683062871,-2842.52,0.00017808,2]
[389497719,1759683062880,-500.0,0.00017808,2]
[389497720,1759683062890,-500.0,0.00017808,2]
[389497721,1759683062899,-569.08,0.00017808,2]
[389497722,1759683062908,-500.0,0.00017808,2]
[389497723,1759683062919,-500.0,0.00017808,2]
[389497724,1759683062928,-500.0,0.00017808,2]
[389497725,1759683062937,-500.0,0.00017808,2]
[389497726,1759683062946,-500.0,0.00017808,2]
[389497727,1759683062960,-905.39,0.00017808,2]
[389497728,1759683062970,-1559.51,0.00017808,2]
[389497729,1759683062979,-863.89,0.00017808,2]
[389497730,1759683062988,-727.65,0.00017808,2]
[389497731,1759683062998,-500.0,0.00017808,2]
[389497732,1759683063007,-500.0,0.00017808,2]
[389497733,1759683063017,-500.0,0.00017808,2]
[389497734,1759683063026,-500.0,0.00017808,2]
[389497735,1759683063035,-951.46,0.00017808,2]
[389497736,1759683063046,-207.29082783,0.00017808,2]
[389497737,1759683063055,-500.0,0.00017808,2]
[389497738,1759683063064,-500.0,0.00017808,2]
[389497739,1759683063073,-500.0,0.00017808,2]
[389497740,1759683063083,-500.0,0.00017808,2]
[389497741,1759683063093,-500.0,0.00017808,2]
[389497742,1759683063102,-500.0,0.00017808,2]
[389497743,1759683063111,-500.0,0.00017808,2]
[389497744,1759683063120,-1271.97,0.00017808,2]
[389497745,1759683063129,-500.0,0.00017808,2]
[389497746,1759683063139,-500.0,0.00017808,2]
[389497747,1759683063148,-500.0,0.00017808,2]
[389497748,1759683063157,-665.62,0.00017808,2]
[389497749,1759683063167,-665.43,0.00017808,2]
[389497750,1759683063176,-627.59,0.00017808,2]
[389497751,1759683063189,-500.0,0.00017808,2]
[389497752,1759683063199,-500.0,0.00017808,2]
[389497753,1759683063209,-3139.2,0.00017808,2]
[389497754,1759683063218,-707.99,0.00017808,2]
[389497755,1759683063230,-500.0,0.00017808,2]
[389497756,1759683063239,-577.86,0.00017808,2]
[389497757,1759683063248,-500.0,0.00017808,2]
[389497758,1759683063258,-1861.48,0.00017808,2]
[389497759,1759683063269,-500.0,0.00017808,2]
[389497760,1759683063278,-706.46,0.00017808,2]
[389497761,1759683063287,-500.0,0.00017808,2]
[389497762,1759683063296,-500.0,0.00017808,2]
[389497763,1759683063306,-1077.99,0.00017808,2]
[389497764,1759683063315,-341.61264277,0.00017808,2]
[389497765,1759683063324,-500.0,0.00017808,2]
[389497766,1759683063333,-500.0,0.00017808,2]
[389497767,1759683063342,-500.0,0.00017808,2]
[389497768,1759683063351,-653.03,0.00017808,2]
[389497769,1759683063361,-769.59,0.00017808,2]
[389497770,1759683063370,-500.0,0.00017808,2]
[389497771,1759683063379,-500.0,0.00017808,2]
[389497772,1759683063388,-1276.47,0.00017808,2]
[389497773,1759683063397,-500.0,0.00017808,2]
[389497774,1759683063406,-690.87,0.00017808,2]
[389497775,1759683063414,-507.23,0.00017808,2]
[389497776,1759683063424,-500.0,0.00017808,2]
[389497777,1759683063432,-1894.19,0.00017808,2]
[389497778,1759683063441,-500.0,0.00017808,2]
[389497779,1759683063454,-500.0,0.00017808,2]
[389497780,1759683063464,-1293.08,0.00017808,2]
[389497781,1759683063473,-761.4,0.00017808,2]
[389497782,1759683063482,-500.0,0.00017808,2]
[389497783,1759683063491,-922.24,0.00017808,2]
[389497784,1759683063500,-500.0,0.00017808,2]
[389497785,1759683063509,-1589.72,0.00017808,2]
[389497786,1759683063518,-500.0,0.00017808,2]
[389497787,1759683063528,-3451.89,0.00017808,2]
[389497788,1759683063537,-1321.69,0.00017808,2]
[389497789,1759683063546,-500.0,0.00017808,2]
[389497790,1759683063555,-587.27,0.00017808,2]
[389497791,1759683063564,-500.0,0.00017808,2]
[389497792,1759683063574,-500.0,0.00017808,2]
[389497793,1759683063584,-500.0,0.00017808,2]
[389497794,1759683063594,-500.0,0.00017808,2]
[389497795,1759683063603,-500.0,0.00017808,2]
[389497796,1759683063612,-500.0,0.00017808,2]
[389497797,1759683063621,-919.59,0.00017808,2]
[389497798,1759683063630,-586.99,0.00017808,2]
[389497799,1759683063639,-500.0,0.00017808,2]
[389497800,1759683063649,-1240.25,0.00017808,2]
[389497801,1759683063659,-1980.12,0.00017808,2]
[389497802,1759683063668,-500.0,0.00017808,2]
[389497803,1759683063678,-500.0,0.00017808,2]
[389497804,1759683063687,-589.1,0.00017808,2]
[389497805,1759683063696,-500.0,0.00017808,2]
[389497806,1759683063709,-690.9,0.00017808,2]
[389497807,1759683063719,-505.92,0.00017808,2]
[389497808,1759683063728,-500.0,0.00017808,2]
[389497809,1759683063738,-500.0,0.00017808,2]
[389497810,1759683063747,-500.0,0.00017808,2]
[389497811,1759683063757,-500.0,0.00017808,2]
[389497812,1759683063766,-500.0,0.00017808,2]
[389497813,1759683063776,-766.86,0.00017808,2]
[389497814,1759683063785,-500.0,0.00017808,2]
[389497815,1759683063797,-750.6,0.00017808,2]
[389497816,1759683063809,-662.6,0.00017808,2]
[389497817,1759683063820,-500.0,0.00017808,2]
[389497818,1759683063832,-500.0,0.00017808,2]
[389497819,1759683063842,-2886.56,0.00017808,2]
[389497820,1759683063851,-151.0,0.00017808,2]
[389497821,1759683063861,-548.46,0.00017808,2]
[389497822,1759683063870,-878.92,0.00017808,2]
[389497823,1759683063880,-1381.99,0.00017808,2]
[389497824,1759683063889,-500.0,0.00017808,2]
[389497825,1759683063899,-500.0,0.00017808,2]
[389497826,1759683063908,-500.0,0.00017808,2]
[389497827,1759683063918,-500.0,0.00017808,2]
[389497828,1759683063927,-500.0,0.00017808,2]
[389497829,1759683063937,-500.0,0.00017808,2]
[389497830,1759683063949,-1231.65,0.00017808,2]
[389497831,1759683063959,-500.0,0.00017808,2]
[389497832,1759683063968,-500.0,0.00017808,2]
[389497833,1759683063978,-656.49,0.00017808,2]
[389497834,1759683063988,-500.0,0.00017808,2]
[389497835,1759683063997,-505.59372834,0.00017808,2]
[389497836,1759683064007,-1288.0,0.00017808,2]
[389497837,1759683064017,-675.41,0.00017808,2]
[389497838,1759683064027,-519.32,0.00017808,2]
[389497839,1759683064036,-828.85,0.00017808,2]
[389497840,1759683064045,-843.89,0.00017808,2]
[389497841,1759683064055,-500.0,0.00017808,2]
[389497842,1759683064064,-500.0,0.00017808,2]
[389497843,1759683064073,-500.0,0.00017808,2]
[389497844,1759683064083,-1439.12,0.00017808,2]
[389497845,1759683064092,-480.0,0.00017808,2]
[389497846,1759683064102,-500.0,0.00017808,2]
[389497847,1759683064111,-1208.03,0.00017808,2]
[389497848,1759683064120,-500.0,0.00017808,2]
[389497849,1759683064129,-158.554178,0.00017808,2]
[389497850,1759683064139,-500.0,0.00017808,2]
[389497851,1759683064148,-2847.73,0.00017808,2]
[389497852,1759683064157,-500.0,0.00017808,2]
[389497853,1759683064167,-1201.88,0.00017808,2]
[389497854,1759683064176,-500.0,0.00017808,2]
[389497855,1759683064187,-7543.42,0.00017808,2]
[389497856,1759683064197,-500.0,0.00017808,2]
[389497857,1759683064210,-2501.47,0.00017808,2]
[389497858,1759683064223,-202.20094709,0.00017808,2]
[389497859,1759683064234,-500.0,0.00017808,2]
[389497860,1759683064244,-605.92,0.00017808,2]
[389497861,1759683064254,-2829.49,0.00017808,2]
[389497862,1759683064263,-500.0,0.00017808,2]
[389497863,1759683064275,-7633.12,0.00017808,2]
[389497864,1759683064285,-500.0,0.00017808,2]
[389497865,1759683064295,-1955.89,0.00017808,2]
[389497866,1759683064304,-500.0,0.00017808,2]
[389497867,1759683064313,-500.0,0.00017808,2]
[389497868,1759683064322,-500.0,0.00017808,2]
[389497869,1759683064331,-1524.42,0.00017808,2]
[389497870,1759683064340,-1078.1,0.00017808,2]
[389497871,1759683064349,-500.0,0.00017808,2]
[389497872,1759683064358,-2430.6,0.00017808,2]
[389497873,1759683064368,-1566.87,0.00017808,2]
[389497874,1759683064377,-272.39133705,0.00017808,2]
[389497875,1759683064386,-3661.35,0.00017808,2]
[389497876,1759683064395,-5648.74,0.00017808,2]
[389497877,1759683064405,-941.56,0.00017808,2]
[389497878,1759683064414,-500.0,0.00017808,2]
[389497879,1759683064423,-2793.01,0.00017808,2]
[389497880,1759683064491,-500.0,0.00017808,2]
[389497881,1759683064500,-500.0,0.00017808,2]
[389497882,1759683064510,-4190.87,0.00017808,2]
[389497883,1759683064520,-500.0,0.00017808,2]
[389497884,1759683064529,-712.14,0.00017808,2]
[389497885,1759683064538,-500.0,0.00017808,2]
[389497886,1759683064547,-1244.49,0.00017808,2]
[389497887,1759683064556,-7876.79,0.00017808,2]
[389497888,1759683064566,-500.0,0.00017808,2]
[389497889,1759683064575,-1636.71,0.00017808,2]
[389497890,1759683064585,-500.0,0.00017808,2]
[389497891,1759683064594,-500.0,0.00017808,2]
[389497892,1759683064603,-500.0,0.00017808,2]
[389497893,1759683064612,-500.0,0.00017808,2]
[389497894,1759683064622,-1542.81,0.00017808,2]
[389497895,1759683064631,-691.74,0.00017808,2]
[389497896,1759683064641,-746.45,0.00017808,2]
[389497897,1759683064650,-745.75,0.00017808,2]
[389497898,1759683064659,-864.59,0.00017808,2]
[389497899,1759683064668,-500.0,0.00017808,2]
[389497900,1759683064678,-1625.81,0.00017808,2]
[389497901,1759683064687,-1276.87,0.00017808,2]
[389497902,1759683064697,-914.33,0.00017808,2]
[389497903,1759683064709,-500.0,0.00017808,2]
[389497904,1759683064718,-1151.73,0.00017808,2]
[389497905,1759683064728,-1768.9,0.00017808,2]
[389497906,1759683064737,-4128.88,0.00017808,2]
[389497907,1759683064747,-500.0,0.00017808,2]
[389497908,1759683064756,-601.81,0.00017808,2]
[389497909,1759683064766,-500.0,0.00017808,2]
[389497910,1759683064776,-1631.89,0.00017808,2]
[389497911,1759683064786,-2717.3,0.00017808,2]
[389497912,1759683064795,-853.97,0.00017808,2]
[389497913,1759683064805,-500.0,0.00017808,2]
[389497914,1759683064814,-5655.4,0.00017808,2]
[389497915,1759683064824,-644.18,0.00017808,2]
[389497916,1759683064833,-851.61,0.00017808,2]
[389497917,1759683064843,-5499.36,0.00017808,2]
[389497918,1759683064852,-4498.11,0.00017808,2]
[389497919,1759683064862,-4396.27,0.00017808,2]
[389497920,1759683064871,-601.93,0.00017808,2]
[389497921,1759683064880,-500.0,0.00017808,2]
[389497922,1759683064890,-500.0,0.00017808,2]
[389497923,1759683064898,-830.43,0.00017808,2]
[389497924,1759683064907,-500.0,0.00017808,2]
[389497925,1759683064916,-500.0,0.00017808,2]
[389497926,1759683064925,-500.0,0.00017808,2]
[389497927,1759683064934,-921.77,0.00017808,2]
[389497928,1759683064943,-1181.0,0.00017808,2]
[389497929,1759683064955,-2597.62,0.00017808,2]
[389497930,1759683064965,-1226.01,0.00017808,2]
[389497931,1759683064974,-1056.87,0.00017808,2]
[389497932,1759683064983,-500.0,0.00017808,2]
[389497933,1759683064993,-500.0,0.00017808,2]
[389497934,1759683065001,-1595.17,0.00017808,2]
[389497935,1759683065010,-3567.7,0.00017808,2]
[389497936,1759683065019,-4467.37,0.00017808,2]
[389497937,1759683065029,-500.0,0.00017808,2]
[389497938,1759683065038,-500.0,0.00017808,2]
[389497939,1759683065047,-2425.68,0.00017808,2]
[389497940,1759683065056,-1398.29,0.00017808,2]
[389497941,1759683065065,-509.51,0.00017808,2]
[389497942,1759683065074,-4931.82,0.00017808,2]
[389497943,1759683065083,-500.0,0.00017808,2]
[389497944,1759683065094,-500.0,0.00017808,2]
[389497945,1759683065103,-2146.05,0.00017808,2]
[389497946,1759683065112,-2006.77,0.00017808,2]
[389497947,1759683065121,-500.0,0.00017808,2]
[389497948,1759683065130,-500.0,0.00017808,2]
[389497949,1759683065139,-500.0,0.00017808,2]
[389497950,1759683065149,-1916.69,0.00017808,2]
[389497951,1759683065158,-500.0,0.00017808,2]
[389497952,1759683065167,-9096.5,0.00017808,2]
[389497953,1759683065176,-3164.66,0.00017808,2]
[389497954,1759683065192,-500.0,0.00017808,2]
[389497955,1759683065204,-1132.36,0.00017808,2]
[389497956,1759683065213,-593.97,0.00017808,2]
[389497957,1759683065222,-500.0,0.00017808,2]
[389497958,1759683065234,-500.0,0.00017808,2]
[389497959,1759683065244,-500.0,0.00017808,2]
[389497960,1759683065253,-1024.56,0.00017808,2]
[389497961,1759683065263,-703.22,0.00017808,2]
[389497962,1759683065272,-500.0,0.00017808,2]
[389497963,1759683065281,-500.0,0.00017808,2]
[389497964,1759683065290,-1118.02,0.00017808,2]
[389497965,1759683065300,-500.0,0.00017808,2]
[389497966,1759683065309,-500.0,0.00017808,2]
[389497967,1759683065318,-1995.61,0.00017808,2]
[389497968,1759683065327,-2310.91,0.00017808,2]
[389497969,1759683065336,-583.51,0.00017808,2]
[389497970,1759683065345,-500.0,0.00017808,2]
[389497971,1759683065354,-741.26,0.00017808,2]
[389497972,1759683065363,-4044.23,0.00017808,2]
[389497973,1759683065371,-500.0,0.00017808,2]
[389497974,1759683065381,-1000.0,0.00017821,2]
[389497975,1759683065389,-1000.0,0.00017821,2]
[389497976,1759683065399,-500.0,0.00017826,2]
[389497977,1759683065407,-500.0,0.00017826,2]
[389497978,1759683065416,-343.61405455,0.00017826,2]
[389497979,1759683065425,-500.91811297,0.00017826,2]
[389497980,1759683065433,-151.0,0.00017841,2]
[389497981,1759683065442,-500.0,0.00017841,2]